bitfinex-derivatives/quotes_BNBF0:USTF0_20250101
["timestamp","ask_amount","ask_price","bid_price","bid_amount"]
[1735758316032,0.2605374,707.09,705.87,1.05996435]
[1735758316232,0.6405374,707.09,705.87,1.05996435]
[1735758316532,0.38,707.09,705.87,1.05996435]
[1735758316927,0.26055043,707.08,705.84,1.05996435]
[1735758317631,0.38,707.09,705.84,1.05996435]
[1735758318127,0.38,707.09,705.88,1.05996435]
[1735758319335,0.38,707.09,705.82,1.05996435]
[1735758320732,0.38,707.09,705.81,1.05996435]
[1735758321735,0.38,707.09,705.8,1.05996435]
[1735758322832,0.28285342,707.08,705.77,1.05996435]
[1735758326838,0.28285342,707.08,705.76,1.05996435]
[1735758328040,0.28285342,707.08,705.84,1.05996435]
[1735758329440,0.28285342,707.08,705.83,1.05996435]
[1735758330539,0.28285342,707.08,705.11,2.16409389]
[1735758330540,0.28285342,707.08,705.86,1.05996435]
[1735758331544,0.26055608,707.07,705.86,1.05996435]
[1735758331943,0.26055608,707.07,705.9,1.05996435]
[1735758332844,0.26055608,707.07,706.01,1.05996435]
[1735758333440,0.28285342,707.08,706.01,1.05996435]
[1735758333746,0.26056998,707.07,706.01,1.05996435]
[1735758333948,0.28286142,707.06,705.99,1.05996435]
[1735758334146,0.26057705,707.05,705.99,1.05996435]
[1735758334745,1.47815683,707.04,705.99,1.05996435]
[1735758334946,0.26057705,707.03,705.9,1.05996435]
[1735758335749,0.26057705,707.03,705.25,2.16409389]
[1735758335750,0.26057705,707.03,705.92,1.05996435]
[1735758336047,0.26059531,707.02,705.92,1.05996435]
[1735758336248,0.54347499,707.01,705.92,1.05996435]
[1735758336448,0.26059356,707.0,705.92,1.05996435]
[1735758336648,0.28288943,706.99,705.92,1.05996435]
[1735758336849,0.26059356,706.98,705.9,1.05996435]
[1735758337143,0.28288943,706.99,705.9,1.05996435]
[1735758338045,0.28288943,706.99,705.95,1.05996435]
[1735758339151,0.28288943,706.99,705.97,1.05996435]
[1735758341546,0.28288943,706.99,705.73,1.05996435]
[1735758341547,0.28288943,706.99,705.88,1.05996435]
[1735758343553,0.28288943,706.99,705.87,1.05996435]
[1735758345053,0.28288943,706.99,705.89,1.05996435]
[1735758345348,0.381,706.98,705.89,1.05996435]
[1735758345749,0.37365686,706.98,705.89,1.05996435]
[1735758345952,0.37365686,706.98,705.84,1.05996435]
[1735758346147,0.28289743,706.97,705.84,1.05996435]
[1735758346453,0.26062966,706.96,705.84,1.05996435]
[1735758346654,0.26064393,706.96,705.84,1.05996435]
[1735758346952,1.47849177,706.95,705.84,1.05996435]
[1735758347153,0.26064393,706.94,705.84,1.05996435]
[1735758347448,1.0619796,706.91,705.83,1.05996435]
[1735758347748,0.26064393,706.9,705.83,1.05996435]
[1735758348352,1.0619796,706.82,705.74,1.05996435]
[1735758348553,0.26064393,706.81,705.74,1.05996435]
[1735758349053,1.0619796,706.82,705.74,1.05996435]
[1735758349250,0.26065249,706.81,705.75,1.05996435]
[1735758349456,1.0619796,706.9,705.75,1.05996435]
[1735758349649,0.26064298,706.89,705.75,1.05996435]
[1735758350453,0.26064298,706.88,705.75,1.05996435]
[1735758350655,0.26064298,706.87,705.75,1.05996435]
[1735758350956,0.26064298,706.86,705.75,1.05996435]
[1735758351150,0.26064298,706.85,705.75,1.05996435]
[1735758351355,0.26064298,706.84,705.76,1.05996435]
[1735758351556,0.26064298,706.83,705.76,1.05996435]
[1735758351856,0.2606465,706.82,705.76,1.05996435]
[1735758352056,0.2606465,706.81,705.76,1.05996435]
[1735758352351,1.47849177,706.95,705.76,1.05996435]
[1735758352556,0.2606408,706.94,705.76,1.05996435]
[1735758353661,0.2606408,706.94,705.18,2.16409389]
[1735758353662,0.2606408,706.94,705.72,1.05996435]
[1735758354359,0.26065564,706.93,705.7,1.05996435]
[1735758354658,0.26065564,706.92,705.7,1.05996435]
[1735758354861,0.26065564,706.91,705.7,1.05996435]
[1735758355160,0.26065564,706.9,705.7,1.05996435]
[1735758355360,0.26065564,706.89,705.69,1.05996435]
[1735758355556,0.26065564,706.88,705.69,1.05996435]
[1735758355760,0.26065564,706.87,705.69,1.05996435]
[1735758355962,0.26065564,706.86,705.69,1.05996435]
[1735758356155,0.26065564,706.85,705.69,1.05996435]
[1735758356461,0.26065564,706.84,705.66,1.05996435]
[1735758356659,0.26065564,706.83,705.66,1.05996435]
[1735758356855,0.26064849,706.82,705.66,1.05996435]
[1735758357055,0.26064849,706.93,705.66,1.05996435]
[1735758357259,1.47862264,706.82,705.66,1.05996435]
[1735758357460,0.26064849,706.81,705.66,1.05996435]
[1735758357663,0.26064627,706.8,705.66,1.05996435]
[1735758357859,1.47868547,706.81,705.66,1.05996435]
[1735758358060,0.26064926,706.8,705.66,1.05996435]
[1735758358256,1.47868547,706.81,705.66,1.05996435]
[1735758358762,0.26064861,706.8,705.66,1.05996435]
[1735758359456,0.26064861,706.8,705.65,1.05996435]
[1735758359655,0.26065476,706.79,705.65,1.05996435]
[1735758359854,0.26065476,706.78,705.65,1.05996435]
[1735758360061,1.47868547,706.81,705.65,1.05996435]
[1735758360259,0.26065155,706.8,705.65,1.05996435]
[1735758360565,0.26065155,706.8,705.64,1.05996435]
[1735758360964,1.47868547,706.81,705.64,1.05996435]
[1735758361360,0.26065554,706.8,705.64,1.05996435]
[1735758361566,0.26065554,706.8,705.03,2.16409389]
[1735758361567,0.26065554,706.8,705.63,1.05996435]
[1735758362561,0.26066281,706.79,705.63,1.05996435]
[1735758362769,0.26066281,706.78,705.63,1.05996435]
[1735758362964,0.26066281,706.77,705.61,1.05996435]
[1735758363270,0.63366281,706.76,705.61,1.05996435]
[1735758363469,0.26066281,706.75,705.61,1.05996435]
[1735758363667,0.373,706.76,705.61,1.05996435]
[1735758364070,0.373,706.76,705.39,1.05996435]
[1735758364071,0.373,706.76,705.6,1.05996435]
[1735758365170,0.373,706.76,705.64,1.05996435]
[1735758365775,0.26065789,706.75,705.64,1.05996435]
[1735758365964,0.373,706.76,705.64,1.05996435]
[1735758366169,0.373,706.76,705.62,1.05996435]
[1735758366871,0.373,706.76,705.55,1.05996435]
[1735758367872,0.373,706.76,705.57,1.05996435]
[1735758369070,0.373,706.76,705.42,1.05996435]
[1735758370375,0.26070735,706.75,705.42,1.05996435]
[1735758370575,0.26070735,706.75,705.38,1.05996435]
[1735758371769,0.373,706.76,705.38,1.05996435]
[1735758372077,0.373,706.76,705.03,0.71839481]
[1735758372078,0.26072111,706.75,705.4,1.05996435]
[1735758372475,0.373,706.76,705.4,1.05996435]
[1735758372678,0.26071841,706.75,705.4,1.05996435]
[1735758374277,0.26071841,706.75,705.38,1.05996435]
[1735758374473,0.26075294,706.74,705.38,1.05996435]
[1735758374778,0.26075294,706.73,705.38,1.05996435]
[1735758374977,0.26075294,706.72,705.38,1.05996435]
[1735758375171,0.373,706.76,705.38,1.05996435]
[1735758375172,0.26075294,706.71,705.38,1.05996435]
[1735758375377,0.26075294,706.7,705.38,1.05996435]
[1735758375578,0.26075294,706.7,705.15,1.05996435]
[1735758375579,0.26075294,706.69,705.36,1.05996435]
[1735758375878,0.26075294,706.68,705.36,1.05996435]
[1735758376071,0.26075294,706.67,705.36,1.05996435]
[1735758376273,1.47917781,706.73,705.36,1.05996435]
[1735758376472,1.47917781,706.73,705.33,1.05996435]
[1735758377581,0.374,706.72,705.33,1.05996435]
[1735758377877,0.374,706.72,705.02,0.28367989]
[1735758379976,0.374,706.72,705.03,1.05996435]
[1735758381080,0.374,706.72,705.06,1.05996435]
[1735758382387,0.374,706.72,705.24,1.05996435]
[1735758384389,0.374,706.72,705.32,1.05996435]
[1735758385891,0.374,706.72,705.39,1.05996435]
[1735758386794,0.374,706.72,705.45,1.05996435]
[1735758387288,0.26067623,706.71,705.45,1.05996435]
[1735758387988,0.26067623,706.71,705.58,1.05996435]
[1735758388293,0.26067506,706.7,705.58,1.05996435]
[1735758388486,0.374,706.72,705.58,1.05996435]
[1735758389092,0.374,706.72,705.03,0.71905635]
[1735758389093,0.374,706.72,705.7,1.05996435]
[1735758389593,0.26066108,706.71,705.7,1.05996435]
[1735758389892,0.26066108,706.7,705.7,1.05996435]
[1735758390090,1.47917781,706.73,705.7,1.05996435]
[1735758390290,0.26066291,706.72,705.7,1.05996435]
[1735758390490,0.26066291,706.72,705.75,1.05996435]
[1735758390892,1.47917781,706.73,705.75,1.05996435]
[1735758391491,1.47917781,706.73,705.69,1.05996435]
[1735758392692,1.47917781,706.73,705.66,1.05996435]
[1735758393799,1.47917781,706.73,705.14,1.27195722]
[1735758393800,1.47917781,706.73,705.65,1.05996435]
[1735758394797,1.47917781,706.73,705.11,1.27195722]
[1735758394798,1.47917781,706.73,705.69,1.05996435]
[1735758396100,1.47917781,706.73,705.67,1.05996435]
[1735758397501,1.47917781,706.73,705.13,1.27195722]
[1735758397502,1.47917781,706.73,705.69,1.05996435]
[1735758398602,1.47917781,706.73,705.66,1.05996435]
[1735758399397,1.47917781,706.73,705.68,1.05996435]
[1735758400596,1.47917781,706.73,705.67,1.05996435]
[1735758401504,1.47917781,706.73,705.71,1.05996435]
[1735758402400,1.47917781,706.73,705.68,1.05996435]
[1735758403502,1.47917781,706.73,705.69,1.05996435]
[1735758405804,1.47917781,706.73,705.66,1.05996435]
[1735758406705,1.47917781,706.73,705.68,1.05996435]
[1735758406706,0.26067319,706.72,705.68,1.05996435]
[1735758406906,1.47917781,706.73,705.68,1.05996435]
[1735758407106,0.2606726,706.72,705.68,1.05996435]
[1735758407306,1.47917781,706.73,705.68,1.05996435]
[1735758407606,0.26067309,706.72,705.68,1.05996435]
[1735758407808,1.47917781,706.73,705.68,1.05996435]
[1735758408706,1.47917781,706.73,705.69,1.05996435]
[1735758409908,1.47917781,706.73,705.71,1.05996435]
[1735758411204,1.47917781,706.73,705.22,1.27195722]
[1735758411205,1.47917781,706.73,705.73,1.05996435]
[1735758412105,1.47917781,706.73,705.74,1.05996435]
[1735758413013,1.47917781,706.73,705.7,1.05996435]
[1735758414110,1.47917781,706.73,705.74,1.05996435]
[1735758416514,1.47917781,706.73,705.76,1.05996435]
[1735758416711,0.374,706.72,705.76,1.05996435]
[1735758419619,0.374,706.72,705.77,1.05996435]
[1735758420616,0.374,706.72,705.78,1.05996435]
[1735758421918,0.374,706.72,705.76,1.05996435]
[1735758422620,0.374,706.72,705.71,1.05996435]
[1735758423817,0.374,706.72,705.72,1.05996435]
[1735758424918,0.374,706.72,705.76,1.05996435]
[1735758426324,0.374,706.72,705.74,1.05996435]
[1735758428127,0.374,706.72,705.73,1.05996435]
[1735758429426,0.374,706.72,705.74,1.05996435]
[1735758432027,0.374,706.72,705.86,1.05996435]
[1735758432824,0.374,706.72,705.84,1.05996435]
[1735758433933,0.374,706.72,705.81,1.05996435]
[1735758434129,0.26069207,706.71,705.81,1.05996435]
[1735758434831,0.26069925,706.7,705.81,1.05996435]
[1735758435131,0.26069925,706.69,705.76,1.05996435]
[1735758436027,0.26069489,706.68,705.76,1.05996435]
[1735758436232,1.32267449,706.67,705.72,1.05996435]
[1735758436432,1.0619796,706.67,705.72,1.05996435]
[1735758437138,1.0619796,706.69,705.73,1.05996435]
[1735758437431,0.26069862,706.68,705.73,1.05996435]
[1735758438134,1.32267822,706.68,705.71,1.05996435]
[1735758438332,0.26069862,706.67,705.71,1.05996435]
[1735758438632,1.0619796,706.68,705.71,1.05996435]
[1735758439034,1.4359796,706.72,705.72,1.05996435]
[1735758439232,0.26068472,706.71,705.72,1.05996435]
[1735758439435,0.26068476,706.7,705.72,1.05996435]
[1735758439635,1.4359796,706.72,705.72,1.05996435]
[1735758439834,0.26068113,706.71,705.72,1.05996435]
[1735758440435,0.26068113,706.71,705.75,1.05996435]
[1735758441128,0.28300551,706.7,705.75,1.05996435]
[1735758441332,0.28300551,706.7,705.77,1.05996435]
[1735758442935,0.28300551,706.7,705.75,1.05996435]
[1735758443735,0.28300551,706.7,705.73,1.05996435]
[1735758444231,0.26068644,706.69,705.73,1.05996435]
[1735758444435,0.28300551,706.7,705.73,1.05996435]
[1735758445931,0.374,706.69,705.73,1.05996435]
[1735758446135,0.374,706.69,705.74,1.05996435]
[1735758446836,0.28301352,706.68,705.74,1.05996435]
[1735758448937,0.28301352,706.68,705.68,1.05996435]
[1735758450336,0.28301352,706.68,705.7,1.05996435]
[1735758450934,0.28301352,706.68,705.68,1.05996435]
[1735758452041,0.28301352,706.68,705.69,1.05996435]
[1735758455444,0.28301352,706.68,705.68,1.05996435]
[1735758456646,0.28301352,706.68,705.66,1.05996435]
[1735758457647,0.28301352,706.68,705.68,1.05996435]
[1735758458043,0.26069151,706.67,705.68,1.05996435]
[1735758458741,0.26069666,706.66,705.72,1.05996435]
[1735758458946,0.26069666,706.65,705.72,1.05996435]
[1735758459140,0.28301352,706.68,705.72,1.05996435]
[1735758459343,1.47886351,706.64,705.72,1.05996435]
[1735758460241,1.47886351,706.64,705.12,2.16409389]
[1735758460242,1.47886351,706.64,705.71,1.05996435]
[1735758461040,1.47886351,706.64,705.7,1.05996435]
[1735758462248,1.47886351,706.64,705.47,1.05996435]
[1735758463649,1.47886351,706.64,705.45,1.05996435]
[1735758464649,0.28303355,706.63,705.45,1.05996435]
[1735758467153,0.28303355,706.63,705.46,1.05996435]
[1735758469256,0.28303355,706.63,705.4,1.05996435]
[1735758470355,0.28303355,706.63,705.38,1.05996435]
[1735758471157,0.26074404,706.62,705.39,1.05996435]
[1735758471357,0.260744,706.61,705.39,1.05996435]
[1735758471552,0.260744,706.62,705.39,1.05996435]
[1735758471858,0.260744,706.61,705.39,1.05996435]
[1735758472056,0.260744,706.6,705.39,1.05996435]
[1735758472257,0.260744,706.59,705.48,1.05996435]
[1735758472458,0.28303355,706.63,705.48,1.05996435]
[1735758472659,0.2607428,706.62,705.48,1.05996435]
[1735758473157,0.374,706.61,705.48,1.05996435]
[1735758473358,0.2607428,706.6,705.47,1.05996435]
[1735758473956,0.26074456,706.59,705.47,1.05996435]
[1735758474158,0.26074456,706.58,705.47,1.05996435]
[1735758474460,0.26073557,706.57,705.47,1.05996435]
[1735758474758,0.374,706.61,705.49,1.05996435]
[1735758474955,0.26073775,706.6,705.49,1.05996435]
[1735758475155,1.47909398,706.56,705.49,1.05996435]
[1735758475956,1.47909398,706.56,705.17,1.05996435]
[1735758475957,1.47909398,706.56,705.51,1.05996435]
[1735758476952,0.26076015,706.55,705.48,1.05996435]
[1735758478452,0.26076015,706.55,705.44,1.05996435]
[1735758479253,0.26077906,706.54,705.44,1.05996435]
[1735758479454,0.26077906,706.53,705.44,1.05996435]
[1735758479655,0.26077906,706.52,705.35,1.05996435]
[1735758479856,1.47909398,706.56,705.35,1.05996435]
[1735758480059,0.26078125,706.55,705.35,1.05996435]
[1735758481060,1.47909398,706.56,705.35,1.05996435]
[1735758481253,0.26077425,706.55,705.35,1.05996435]
[1735758481861,0.26077932,706.54,705.35,1.05996435]
[1735758482061,0.26077932,706.53,705.41,1.05996435]
[1735758482359,0.26077932,706.52,705.41,1.05996435]
[1735758482559,0.26077932,706.51,705.41,1.05996435]
[1735758482761,0.26077932,706.5,705.41,1.05996435]
[1735758482958,0.26077932,706.49,705.41,1.05996435]
[1735758483159,0.26077932,706.49,705.2,1.05996435]
[1735758483160,0.26077932,706.48,705.39,1.05996435]
[1735758483464,0.26077932,706.47,705.39,1.05996435]
[1735758483658,0.26078241,706.46,705.39,1.05996435]
[1735758483858,0.26078241,706.45,705.39,1.05996435]
[1735758484153,0.26078241,706.44,705.42,1.05996435]
[1735758484358,0.26078241,706.43,705.42,1.05996435]
[1735758484563,0.26078241,706.42,705.42,1.05996435]
[1735758484859,2.54107358,706.56,705.42,1.05996435]
[1735758485057,0.26076942,706.55,705.42,1.05996435]
[1735758485261,1.74010443,706.55,705.42,1.05996435]
[1735758485460,1.74010443,706.55,705.44,1.05996435]
[1735758485461,0.26076942,706.54,705.44,1.05996435]
[1735758486260,0.26077995,706.53,705.44,1.05996435]
[1735758486455,0.26077995,706.53,705.16,1.05996435]
[1735758486456,0.26077995,706.52,705.37,1.05996435]
[1735758486760,0.26077995,706.51,705.37,1.05996435]
[1735758487055,0.26077995,706.5,705.37,1.05996435]
[1735758487260,0.26077995,706.49,705.37,1.05996435]
[1735758487460,0.26077995,706.48,705.37,1.05996435]
[1735758487660,0.26077995,706.47,705.37,1.05996435]
[1735758487861,0.26077995,706.46,705.37,1.05996435]
[1735758488061,0.26077995,706.54,705.37,1.05996435]
[1735758488261,0.26077995,706.53,705.37,1.05996435]
[1735758488461,0.26077995,706.52,705.37,1.05996435]
[1735758488658,0.26077995,706.51,705.37,1.05996435]
[1735758488862,0.26077995,706.54,705.37,1.05996435]
[1735758489061,0.26077995,706.53,705.37,1.05996435]
[1735758489261,0.26077995,706.52,705.37,1.05996435]
[1735758489461,0.26077995,706.51,705.37,1.05996435]
[1735758489660,0.26078739,706.5,705.37,1.05996435]
[1735758489858,0.26078739,706.49,705.37,1.05996435]
[1735758490060,0.26078739,706.48,705.37,1.05996435]
[1735758490261,0.26078404,706.47,705.37,1.05996435]
[1735758490461,0.26078404,706.46,705.37,1.05996435]
[1735758491164,0.26078404,706.46,705.03,0.71948795]
[1735758491165,0.26078404,706.45,705.36,1.05996435]
[1735758491456,0.26078404,706.44,705.36,1.05996435]
[1735758491661,0.26078404,706.43,705.36,1.05996435]
[1735758491861,0.26078404,706.42,705.36,1.05996435]
[1735758492062,0.26078404,706.41,705.39,1.05996435]
[1735758492357,1.47933501,706.55,705.39,1.05996435]
[1735758492661,0.26078367,706.54,705.39,1.05996435]
[1735758493765,0.26078367,706.54,705.4,1.05996435]
[1735758494164,1.47933501,706.55,705.4,1.05996435]
[1735758494165,0.26078395,706.53,705.4,1.05996435]
[1735758494359,0.26078395,706.52,705.4,1.05996435]
[1735758494563,0.26078395,706.51,705.4,1.05996435]
[1735758494764,0.26078395,706.5,705.4,1.05996435]
[1735758494964,0.26078395,706.49,705.41,1.05996435]
[1735758495165,0.26078395,706.48,705.41,1.05996435]
[1735758495361,0.26078395,706.47,705.41,1.05996435]
[1735758495563,0.26078395,706.46,705.41,1.05996435]
[1735758495760,0.26078395,706.45,705.41,1.05996435]
[1735758495965,0.26078395,706.45,705.2,1.05996435]
[1735758495966,0.26078395,706.45,705.45,1.05996435]
[1735758497566,0.26078196,706.44,705.45,1.05996435]
[1735758497763,0.26078196,706.43,705.45,1.05996435]
[1735758497968,1.47936121,706.46,705.45,1.05996435]
[1735758498165,0.26078013,706.45,705.45,1.05996435]
[1735758498660,0.26078013,706.45,705.03,0.71948795]
[1735758498661,0.374,706.44,705.43,1.05996435]
[1735758499466,0.26078256,706.43,705.43,1.05996435]
[1735758499670,0.374,706.44,705.43,1.05996435]
[1735758499871,0.26078231,706.43,705.42,1.05996435]
[1735758500172,0.374,706.44,705.42,1.05996435]
[1735758501273,0.374,706.44,705.29,1.05996435]
[1735758502175,0.374,706.44,705.3,1.05996435]
[1735758502970,0.374,706.44,705.02,0.28367989]
[1735758502971,0.374,706.44,705.28,1.05996435]
[1735758503972,0.374,706.44,705.31,1.05996435]
[1735758505170,0.374,706.44,705.3,1.05996435]
[1735758506477,0.374,706.44,705.31,1.05996435]
[1735758507373,0.374,706.44,705.3,1.05996435]
[1735758508076,0.374,706.44,705.31,1.05996435]
[1735758508976,0.374,706.44,705.28,1.05996435]
[1735758511277,0.374,706.44,705.36,1.05996435]
[1735758512075,0.374,706.44,705.32,1.05996435]
[1735758513180,0.374,706.44,705.35,1.05996435]
[1735758514383,0.374,706.44,705.02,0.28367989]
[1735758514384,0.374,706.44,705.32,1.05996435]
[1735758515379,0.374,706.44,705.33,1.05996435]
[1735758518985,0.374,706.44,705.38,1.05996435]
[1735758519492,1.47936121,706.46,705.38,1.05996435]
[1735758520090,1.47936121,706.46,705.34,1.05996435]
[1735758520690,0.374,706.45,705.34,1.05996435]
[1735758521191,0.374,706.45,705.02,1.34364424]
[1735758521192,1.0619796,706.44,705.44,1.05996435]
[1735758522389,1.0619796,706.43,705.46,1.05996435]
[1735758523192,1.0619796,706.42,705.44,1.05996435]
[1735758524491,0.374,706.45,705.42,1.05996435]
[1735758526796,0.374,706.45,705.43,1.05996435]
[1735758528098,0.374,706.45,705.47,1.05996435]
[1735758529797,0.374,706.45,705.48,1.05996435]
[1735758530801,0.374,706.45,705.03,0.72307373]
[1735758530802,0.374,706.45,705.5,1.05996435]
[1735758534209,0.374,706.45,705.03,0.72307373]
[1735758534210,0.374,706.45,705.55,1.05996435]
[1735758536708,0.374,706.45,705.52,1.05996435]
[1735758537709,0.26078854,706.44,705.52,1.05996435]
[1735758537907,0.374,706.45,705.52,1.05996435]
[1735758538205,0.374,706.45,705.53,1.05996435]
[1735758538805,1.47936121,706.46,705.53,1.05996435]
[1735758539008,1.0619796,706.45,705.48,1.05996435]
[1735758539605,0.28310967,706.44,705.48,1.05996435]
[1735758540004,0.374,706.43,705.48,1.05996435]
[1735758540204,0.28311769,706.42,705.48,1.05996435]
[1735758542409,0.28311769,706.42,705.5,1.05996435]
[1735758543610,0.28311769,706.42,705.51,1.05996435]
[1735758545714,0.28311769,706.42,705.53,1.05996435]
[1735758547013,0.28311769,706.42,705.51,1.05996435]
[1735758550210,0.28311769,706.42,705.49,1.05996435]
[1735758551315,0.28311769,706.42,705.5,1.05996435]
[1735758552516,0.28311769,706.42,705.49,1.05996435]
[1735758554518,0.28311769,706.42,705.47,1.05996435]
[1735758555722,0.28311769,706.42,705.45,1.05996435]
[1735758556621,0.26082518,706.41,705.45,1.05996435]
[1735758556822,1.0619796,706.4,705.35,1.05996435]
[1735758558023,1.34509729,706.42,705.35,1.05996435]
[1735758558725,0.28312169,706.41,705.35,1.05996435]
[1735758560025,0.28312169,706.41,705.33,1.05996435]
[1735758561227,0.374,706.4,705.33,1.05996435]
[1735758562529,0.374,706.4,705.31,1.05996435]
[1735758565332,0.374,706.4,705.38,1.05996435]
[1735758566335,0.374,706.4,705.39,1.05996435]
[1735758567431,0.374,706.4,705.41,1.05996435]
[1735758568532,0.374,706.4,705.42,1.05996435]
[1735758569734,0.374,706.4,705.43,1.05996435]
[1735758570831,0.374,706.4,705.03,1.78303808]
[1735758570832,0.374,706.4,705.44,1.05996435]
[1735758571729,0.374,706.4,705.43,1.05996435]
[1735758573840,0.374,706.4,705.49,1.05996435]
[1735758574737,0.374,706.4,705.46,1.05996435]
[1735758577033,0.374,706.4,705.03,0.72307373]
[1735758577034,0.374,706.4,705.47,1.05996435]
[1735758579841,0.374,706.4,705.52,1.05996435]
[1735758580738,0.374,706.4,705.56,1.05996435]
[1735758581740,0.374,706.4,705.55,1.05996435]
[1735758583239,0.374,706.4,705.02,1.55563711]
[1735758583240,0.374,706.4,705.53,1.05996435]
[1735758585437,0.28312169,706.41,705.53,1.05996435]
[1735758585641,0.28312169,706.41,705.43,1.05996435]
[1735758586639,0.374,706.4,705.43,1.05996435]
[1735758587737,0.374,706.4,705.42,1.05996435]
[1735758588938,0.374,706.4,705.41,1.05996435]
[1735758589736,0.374,706.4,705.06,0.72307373]
[1735758589737,0.374,706.4,705.42,1.05996435]
[1735758591141,0.374,706.4,705.43,1.05996435]
[1735758593644,0.374,706.4,705.42,1.05996435]
[1735758594643,0.374,706.4,705.1,0.72307373]
[1735758594644,0.374,706.4,705.47,1.05996435]
[1735758597341,0.374,706.4,705.02,0.28367989]
[1735758597342,0.374,706.4,705.5,1.05996435]
[1735758598548,0.374,706.4,705.02,0.28367989]
[1735758598549,0.374,706.4,705.48,1.05996435]
[1735758599642,0.374,706.4,705.52,1.05996435]
[1735758600548,0.28312169,706.41,705.52,1.05996435]
[1735758600750,0.28312169,706.41,705.53,1.05996435]
[1735758601843,0.374,706.4,705.53,1.05996435]
[1735758602650,0.374,706.4,705.55,1.05996435]
[1735758606653,0.374,706.4,705.57,1.05996435]
[1735758607954,0.374,706.4,705.56,1.05996435]
[1735758609354,0.374,706.4,705.63,1.05996435]
[1735758610651,0.374,706.4,705.64,1.05996435]
[1735758611459,0.374,706.4,705.71,1.05996435]
[1735758612756,0.374,706.4,705.73,1.05996435]
[1735758613852,0.374,706.4,705.75,1.05996435]
[1735758615060,0.374,706.4,705.77,1.05996435]
[1735758616061,0.374,706.4,705.73,1.05996435]
[1735758618053,0.374,706.4,705.7,1.05996435]
[1735758619062,0.374,706.4,705.69,1.05996435]
[1735758621466,0.374,706.4,705.65,1.05996435]
[1735758622464,0.374,706.4,705.63,1.05996435]
[1735758623564,0.374,706.4,705.64,1.05996435]
[1735758624764,0.374,706.4,705.67,1.05996435]
[1735758625870,0.374,706.4,705.68,1.05996435]
[1735758627065,0.374,706.4,705.0,2.16409389]
[1735758627066,0.374,706.4,705.65,1.05996435]
[1735758629868,0.374,706.4,705.64,1.05996435]
[1735758631966,0.28312169,706.41,705.64,1.05996435]
[1735758632163,0.28312169,706.41,705.67,1.05996435]
[1735758633067,0.374,706.4,705.67,1.05996435]
[1735758633467,1.47909398,706.39,705.67,1.05996435]
[1735758634767,1.47909398,706.39,705.03,0.72307373]
[1735758634768,1.47909398,706.39,705.62,1.05996435]
[1735758636164,1.47909398,706.39,705.03,0.72307373]
[1735758636165,1.47909398,706.39,705.72,1.05996435]
[1735758637871,1.47909398,706.39,705.08,2.16409389]
[1735758637872,1.47909398,706.39,705.56,1.05996435]
[1735758638871,1.47909398,706.39,705.53,1.05996435]
[1735758640169,1.47909398,706.39,705.52,1.05996435]
[1735758640570,0.28313372,706.38,705.52,1.05996435]
[1735758641867,0.28313372,706.38,705.2,1.05996435]
[1735758642967,0.28313372,706.38,704.25,2.16409389]
[1735758642968,0.28313372,706.38,705.26,1.05996435]
[1735758643870,0.28313372,706.38,705.23,1.05996435]
[1735758645273,0.28313372,706.38,705.21,1.05996435]
[1735758648474,0.28313372,706.38,705.38,1.05996435]
[1735758649676,0.28313372,706.38,705.27,1.05996435]
[1735758650875,0.28313372,706.38,705.26,1.05996435]
[1735758653178,0.374,706.37,705.26,1.05996435]
[1735758653380,0.374,706.37,705.27,1.05996435]
[1735758654684,0.374,706.37,705.29,1.05996435]
[1735758657184,0.374,706.37,705.35,1.05996435]
[1735758658478,0.374,706.37,705.39,1.05996435]
[1735758659578,0.374,706.37,705.4,1.05996435]
[1735758661886,0.374,706.37,705.28,1.05996435]
[1735758662984,0.374,706.37,705.29,1.05996435]
[1735758664086,0.374,706.37,705.02,0.28367989]
[1735758664087,0.374,706.37,705.32,1.05996435]
[1735758665190,0.374,706.37,705.33,1.05996435]
[1735758665986,0.374,706.37,705.02,0.28367989]
[1735758665987,0.374,706.37,705.32,1.05996435]
[1735758667291,0.374,706.37,705.36,1.05996435]
[1735758668590,0.374,706.37,705.54,1.05996435]
[1735758670883,0.374,706.37,705.52,1.05996435]
[1735758671786,0.374,706.37,705.54,1.05996435]
[1735758674687,0.374,706.37,705.52,1.05996435]
[1735758676589,0.374,706.37,705.48,1.05996435]
[1735758677597,0.374,706.37,705.44,1.05996435]
[1735758678200,0.28313372,706.38,705.44,1.05996435]
[1735758678898,0.28313372,706.38,705.45,1.05996435]
[1735758679502,0.374,706.37,705.45,1.05996435]
[1735758679801,0.374,706.37,705.46,1.05996435]
[1735758680896,0.374,706.37,705.49,1.05996435]